bitfinex/quotes_ETHUSD_20250814
["timestamp","ask_amount","ask_price","bid_price","bid_amount"]
[1755203902665,7.02543271,4533.1,4533.0,13.52600001]
[1755203902963,7.62543271,4533.1,4533.0,13.52600001]
[1755203903126,7.62543271,4533.1,4533.0,14.75600001]
[1755203904074,11.07543271,4533.1,4533.0,14.75600001]
[1755203904234,7.62543271,4533.1,4533.0,14.75600001]
[1755203904659,11.07443271,4533.1,4533.0,15.98600001]
[1755203904965,7.62543271,4533.1,4533.0,15.98600001]
[1755203905169,8.15783271,4533.1,4533.0,15.98600001]
[1755203905323,2.17464748,4533.1,4533.0,15.98600001]
[1755203905527,0.7124,4533.1,4533.0,24.50270001]
[1755203905831,0.7124,4533.1,4533.0,24.93350001]
[1755203906031,0.7124,4533.1,4533.0,26.16350001]
[1755203906941,0.7124,4533.1,4533.0,17.21600001]
[1755203907627,0.7124,4533.1,4533.0,18.44600001]
[1755203907833,0.7124,4533.1,4533.0,21.32330001]
[1755203908051,0.7124,4533.1,4533.0,21.75410001]
[1755203908253,0.7124,4533.1,4533.0,22.44600001]
[1755203908461,0.7124,4533.1,4533.0,25.20410001]
[1755203908667,0.7124,4533.1,4533.0,27.40856405]
[1755203909029,0.7124,4533.1,4533.0,28.63856405]
[1755203909870,0.7124,4533.1,4533.0,25.88046405]
[1755203910569,0.7124,4533.1,4533.0,27.11046405]
[1755203910861,0.7124,4533.1,4533.0,29.86856405]
[1755203911424,7.5122,4533.1,4533.0,20.90600001]
[1755203911625,11.47404745,4533.1,4533.0,20.90600001]
[1755203911830,11.59642642,4533.1,4533.0,22.13600001]
[1755203912026,8.80464041,4533.1,4533.0,22.13600001]
[1755203912274,8.52653182,4533.1,4533.0,22.13600001]
[1755203912791,11.02033182,4533.1,4533.0,22.13600001]
[1755203913476,11.02033182,4533.1,4533.0,23.36600001]
[1755203913983,8.52653182,4533.1,4533.0,23.36600001]
[1755203914152,9.30956502,4533.1,4533.0,23.36600001]
[1755203914557,12.08147361,4533.1,4533.0,23.36600001]
[1755203914975,12.08147361,4533.1,4533.0,24.59600001]
[1755203916190,11.29830786,4533.1,4533.0,24.59600001]
[1755203916502,9.30943247,4533.1,4533.0,25.82600001]
[1755203917195,5.84643247,4533.1,4533.0,25.82600001]
[1755203917353,8.05719927,4533.1,4533.0,25.82600001]
[1755203917553,4.47785834,4533.1,4533.0,25.82600001]
[1755203917754,0.80600129,4533.1,4533.0,34.97811469]
[1755203918059,0.002,4533.5,4533.0,35.40891469]
[1755203918367,0.002,4533.5,4533.1,3.33015995]
[1755203918698,0.002,4533.5,4533.2,4.01]
[1755203918909,0.002,4533.5,4533.2,6.7681]
[1755203919058,0.002,4533.5,4533.4,1.78]
[1755203919401,0.002,4533.5,4533.4,5.24]
[1755203919554,0.002,4533.5,4533.4,7.9981]
[1755203920457,0.002,4533.5,4533.4,9.2281]
[1755203921758,0.1124,4533.5,4533.4,10.4581]
[1755203922085,0.1124,4533.5,4533.4,11.7243564]
[1755203923086,0.1124,4533.5,4533.4,12.9543564]
[1755203924511,0.1124,4533.5,4533.4,14.1843564]
[1755203924691,0.1124,4533.5,4533.4,10.7243564]
[1755203924900,0.1124,4533.5,4533.4,14.1773564]
[1755203925195,0.1124,4533.5,4533.4,10.153]
[1755203925398,0.1124,4533.5,4533.4,6.15]
[1755203925597,39.5214,4533.5,4533.4,6.15]
[1755203925804,38.89584121,4533.5,4533.4,1.7623]
[1755203925970,39.30805638,4533.5,4533.4,1.8003205]
[1755203926174,38.73031502,4533.5,4533.4,1.8003205]
[1755203926376,38.4725792,4533.5,4533.4,1.8003205]
[1755203927376,38.4725792,4533.5,4533.4,3.0303205]
[1755203928319,38.47313588,4533.5,4533.4,3.0303205]
[1755203928816,38.47313588,4533.5,4533.4,4.2603205]
[1755203929317,8.00693588,4533.5,4533.4,4.2603205]
[1755203929516,8.36923588,4533.5,4533.4,4.2603205]
[1755203930331,8.36923588,4533.5,4533.4,5.4903205]
[1755203931025,8.36889841,4533.5,4533.4,5.4903205]
[1755203931732,38.36889841,4533.5,4533.4,6.7203205]
[1755203931933,38.68288442,4533.5,4533.4,6.7203205]
[1755203932245,53.59941357,4533.5,4533.4,2.1132653]
[1755203932412,53.59941357,4533.5,4533.0,27.05600001]
[1755203932620,0.1104,4533.1,4533.0,27.05600001]
[1755203932821,39.63917718,4533.1,4533.0,27.05600001]
[1755203933016,41.74813059,4533.1,4533.0,28.28600001]
[1755203933238,45.22813059,4533.1,4533.0,28.28600001]
[1755203933606,45.34331129,4533.1,4533.0,28.28600001]
[1755203934036,46.60579812,4533.1,4533.0,28.28600001]
[1755203934245,44.73056993,4533.1,4533.0,28.28600001]
[1755203934440,44.73056993,4533.1,4533.0,29.51600001]
[1755203934747,45.89231129,4533.1,4533.0,29.51600001]
[1755203934957,46.49231129,4533.1,4533.0,29.51600001]
[1755203935109,47.70691129,4533.1,4533.0,29.51600001]
[1755203935307,47.8217455,4533.1,4533.0,23.57775031]
[1755203935640,47.8217455,4533.1,4533.0,24.80775031]
[1755203936019,67.8217455,4533.1,4533.0,24.80775031]
[1755203936202,70.54563632,4533.1,4533.0,24.80775031]
[1755203936600,74.5447569,4533.1,4533.0,24.80775031]
[1755203936838,75.12008585,4533.1,4533.0,24.80775031]
[1755203937038,75.12008585,4533.1,4533.0,26.03775031]
[1755203938345,72.39619503,4533.1,4533.0,24.59508596]
[1755203938841,68.91719503,4533.1,4533.0,24.11595512]
[1755203939044,72.39619503,4533.1,4533.0,24.00552427]
[1755203939435,72.39619503,4533.1,4533.0,23.89509342]
[1755203939756,72.39273042,4533.1,4533.0,23.89509342]
[1755203939972,72.39273042,4533.1,4533.0,25.12509342]
[1755203940318,68.91473042,4533.1,4533.0,25.12509342]
[1755203940556,67.51673042,4533.1,4533.0,25.12509342]
[1755203940851,86.50617683,4533.1,4533.0,23.9325456]
[1755203941217,82.89443547,4533.1,4533.0,23.9325456]
[1755203941422,82.89443547,4533.1,4533.0,25.1625456]
[1755203941645,82.39512148,4533.1,4533.0,25.1625456]
[1755203942122,82.50617683,4533.1,4533.0,25.1625456]
[1755203942322,82.69287683,4533.1,4533.0,25.1625456]
[1755203942544,82.14287683,4533.1,4533.0,25.1625456]
[1755203942754,82.14287683,4533.1,4533.0,26.3925456]
[1755203942963,52.69287683,4533.1,4533.0,26.3925456]
[1755203943120,82.69287683,4533.1,4533.0,26.3925456]
[1755203943315,79.21587683,4533.1,4533.0,26.3925456]
[1755203943549,82.39412148,4533.1,4533.0,26.3925456]
[1755203944259,81.84312148,4533.1,4533.0,27.6225456]
[1755203944644,78.36812148,4533.1,4533.0,27.6225456]
[1755203944886,84.37817683,4533.1,4533.0,27.6225456]
[1755203945020,84.37817683,4533.1,4533.0,23.2334449]
[1755203945220,84.49157683,4533.1,4533.0,22.57762169]
[1755203945461,91.53157683,4533.1,4533.0,23.80762169]
[1755203946032,93.85057683,4533.1,4533.0,23.80762169]
[1755203946457,97.85057683,4533.1,4533.0,23.80762169]
[1755203946979,97.84857683,4533.1,4533.0,24.67870806]
[1755203947274,97.84831256,4533.1,4533.0,24.53514267]
[1755203947863,97.84831256,4533.1,4533.0,23.43114267]
[1755203948024,92.24391156,4533.1,4533.0,23.43114267]
[1755203948358,95.16791156,4533.1,4533.0,24.61114267]
[1755203948855,95.1061702,4533.1,4533.0,24.61114267]
[1755203949024,91.92992555,4533.1,4533.0,24.61114267]
[1755203949251,87.92992555,4533.1,4533.0,24.61114267]
[1755203949551,91.40392555,4533.1,4533.0,24.61114267]
[1755203949747,94.40021156,4533.1,4533.0,25.5104206]
[1755203949983,92.08021156,4533.1,4533.0,25.5104206]
[1755203950189,94.28897196,4533.1,4533.0,25.5104206]
[1755203950376,94.41026492,4533.1,4533.0,25.5104206]
[1755203950957,94.41026492,4533.1,4533.0,24.1893526]
[1755203951265,94.41026492,4533.1,4533.0,23.90221865]
[1755203951654,94.41026492,4533.1,4533.0,22.88503516]
[1755203951852,94.41026492,4533.1,4533.0,22.83603516]
[1755203952477,100.35070655,4533.1,4533.0,20.75350223]
[1755203952680,100.35070655,4533.1,4533.0,20.64307821]
[1755203952989,98.41026492,4533.1,4533.0,20.64307821]
[1755203953293,98.41043918,4533.1,4533.0,20.06052644]
[1755203953500,98.41043918,4533.1,4533.0,19.95010242]
[1755203953785,98.41043918,4533.1,4533.0,21.18010242]
[1755203953952,98.41043918,4533.1,4533.0,21.0696784]
[1755203954160,91.37043918,4533.1,4533.0,13.9796784]
[1755203954359,91.37043918,4533.1,4533.0,13.3667534]
[1755203954562,98.41043918,4533.1,4533.0,13.3667534]
[1755203954791,98.41043918,4533.1,4533.0,13.25632938]
[1755203955093,98.41043918,4533.1,4533.0,11.34789849]
[1755203955284,98.40543918,4533.1,4533.0,11.34789849]
[1755203955480,101.12933,4533.1,4533.0,11.23747447]
[1755203955865,101.12933,4533.1,4533.0,9.93430118]
[1755203956269,101.12731326,4533.1,4533.0,11.05387716]
[1755203956592,101.12731326,4533.1,4533.0,10.83357716]
[1755203956802,101.127412,4533.1,4533.0,6.29984181]
[1755203956956,101.127412,4533.1,4533.0,3.74856395]
[1755203957159,101.127412,4533.1,4533.0,3.46140718]
[1755203957404,101.127412,4533.1,4533.0,2.43790548]
[1755203957995,101.127412,4533.1,4533.0,2.64347814]
[1755203958179,98.40352118,4533.1,4533.0,2.53303851]
[1755203958386,98.51392118,4533.1,4533.0,2.53303851]
[1755203958580,98.51392118,4533.1,4533.0,1.81743851]
[1755203958792,101.237812,4533.1,4533.0,1.81743851]
[1755203959107,97.758812,4533.1,4533.0,1.81743851]
[1755203959291,100.02175665,4533.1,4533.0,3.04743851]
[1755203959596,98.14646196,4533.1,4533.0,3.04743851]
[1755203959798,98.03606196,4533.1,4533.0,5.34943851]
[1755203960003,98.03606196,4533.1,4533.0,3.04743851]
[1755203960207,94.03606196,4533.1,4533.0,3.04743851]
[1755203960364,84.69306196,4533.1,4533.0,3.04743851]
[1755203960567,86.03679177,4533.1,4533.0,5.79053851]
[1755203960761,86.8910216,4533.1,4533.0,7.02053851]
[1755203961188,80.16800761,4533.1,4533.0,7.02053851]
[1755203961502,80.95095887,4533.1,4533.0,7.02053851]
[1755203961665,76.66822305,4533.1,4533.0,7.02053851]
[1755203961870,76.67222305,4533.1,4533.0,7.02053851]
[1755203962069,63.14722305,4533.1,4533.0,8.25053851]
[1755203962314,63.14722305,4533.1,4533.0,8.10702702]
[1755203963073,64.28511155,4533.1,4533.0,8.10702702]
[1755203963273,4.194,4532.9,4532.8,0.28536356]
[1755203963505,7.194,4532.6,4532.5,0.001]
[1755203963713,42.54489983,4532.6,4530.6,2.4487]
[1755203964011,23.18344641,4532.1,4532.0,20.23654742]
[1755203964181,58.23761245,4532.1,4532.0,19.97144168]
[1755203964509,63.71553308,4532.1,4532.0,19.86100205]
[1755203964726,64.17883308,4532.1,4532.0,12.64114663]
[1755203964875,64.17883308,4532.1,4532.0,12.530707]
[1755203965070,84.17883308,4532.1,4532.0,9e-08]
[1755203965269,3.644,4531.7,4529.6,2.9104]
[1755203965506,3.644,4531.7,4528.7,0.001]
[1755203965507,23.18344641,4531.1,4529.9,0.4617]
[1755203965811,59.70112777,4531.1,4531.0,12.301]
[1755203965974,57.38212777,4531.1,4531.0,12.301]
[1755203966176,77.38212777,4531.1,4531.0,12.301]
[1755203966507,77.74542777,4531.1,4531.0,12.08071]
[1755203966681,81.74542777,4531.1,4531.0,12.08071]
[1755203967009,81.74542777,4531.1,4531.0,11.72160538]
[1755203967304,85.65192593,4531.1,4531.0,11.72160538]
[1755203967491,85.65192593,4531.1,4531.0,12.95160538]
[1755203968094,84.06442777,4531.1,4531.0,12.53333612]
[1755203968298,84.06442777,4531.1,4531.0,12.53002353]
[1755203968496,1.325,4530.7,4523.5,0.663716]
[1755203968700,0.55,4530.8,4523.5,0.663716]
[1755203968701,4.969836,4523.6,4523.5,2.97437277]
[1755203969020,3.489,4526.2,4524.7,0.55]
[1755203969253,3.489,4526.2,4524.3,2.21027844]
[1755203969254,3.89534774,4526.1,4524.9,0.55]
[1755203969374,3.89534774,4526.1,4523.8,3.0]
[1755203969375,3.0,4525.9,4523.2,0.663757]
[1755203969712,15.98944641,4526.8,4524.3,2.21025015]
[1755203969713,0.58540382,4526.6,4524.3,2.21025015]
[1755203969883,0.12182749,4527.1,4524.6,0.55]
[1755203970084,28.2742,4527.0,4526.8,1.23]
[1755203970283,3.5,4527.0,4526.8,1.23]
[1755203970484,3.1104,4526.9,4526.8,0.24399999]
[1755203971100,0.58540382,4527.4,4526.8,2.69269999]
[1755203971299,0.1104,4526.9,4526.8,2.96196999]
[1755203971519,6.6104,4526.9,4526.8,0.51326999]
[1755203971673,6.62172465,4526.9,4526.8,2.69269999]
[1755203972120,7.14165158,4526.9,4526.8,2.69269999]
[1755203972974,37.14165158,4526.9,4526.8,1.47399999]
[1755203974189,33.64165158,4526.9,4526.8,1.47399999]
[1755203974413,33.64165158,4526.9,4526.8,2.70399999]
[1755203974414,37.14565158,4526.9,4526.8,2.70399999]
[1755203974717,33.97788759,4526.9,4526.8,2.70399999]
[1755203974880,7.02492805,4526.9,4526.8,5.15269999]
[1755203975073,0.51992805,4526.9,4526.8,5.66796999]
[1755203975421,4.02592805,4526.9,4526.8,5.66796999]
[1755203975826,4.02592805,4526.9,4526.8,6.38269999]
[1755203976114,1.40471983,4526.9,4526.8,6.38269999]
[1755203976312,1.2832636,4526.9,4526.8,6.38269999]
[1755203976680,4.11992805,4526.9,4526.8,6.38269999]
[1755203976876,7.63592805,4526.9,4526.8,6.38269999]
[1755203977082,4.11992805,4526.9,4526.8,8.25096999]
[1755203977283,1.11992805,4526.9,4526.8,8.80096999]
[1755203977498,20.0,4528.9,4526.9,0.55]
[1755203977700,0.1676773,4528.9,4527.1,0.55]
[1755203978002,3.0,4529.3,4527.1,0.55]
[1755203978202,0.5832168,4530.0,4527.3,0.55]
[1755203978407,33.523,4529.9,4527.4,0.02208773]
[1755203978607,3.0,4529.7,4528.8,1.23]
[1755203978774,0.12148996,4529.6,4528.8,1.23]
[1755203978978,3.0,4529.4,4528.8,1.23]
[1755203979189,3.16289829,4529.4,4528.9,0.123]
[1755203979405,3.0,4529.4,4528.9,0.123]
[1755203980195,3.0,4529.4,4529.3,1.23]
[1755203981293,0.5832168,4530.0,4529.3,1.23]
[1755203981492,3.0,4529.8,4529.3,1.23]
[1755203981713,0.1104,4529.4,4529.3,1.353]
[1755203982494,3.517,4529.6,4529.3,1.353]
[1755203982692,0.40524512,4529.5,4529.3,1.353]
[1755203982933,3.40524512,4529.6,4529.5,1.23]
[1755203983129,3.87221448,4529.6,4529.5,1.23]
[1755203983431,4.22808015,4529.6,4529.5,1.23]
[1755203983931,3.87217747,4529.6,4529.5,1.23]
[1755203984137,4.22808015,4529.6,4529.5,1.23]
[1755203984332,4.22808015,4529.6,4529.5,2.46]
[1755203984535,4.22808015,4529.6,4529.5,2.10098703]
[1755203984536,42.95448112,4529.6,4529.5,2.10098703]
[1755203984738,42.95448112,4529.6,4529.3,1.23]
[1755203984940,3.55,4529.4,4529.3,0.39590935]
[1755203985244,0.55,4529.3,4528.8,1.23]
[1755203985412,4.16700846,4529.1,4528.8,1.23]
[1755203985614,3.0,4528.9,4528.8,1.23]
[1755203985811,34.62694244,4528.9,4528.8,1.23]
[1755203986119,57.65148112,4528.9,4528.8,1.23]
[1755203987009,58.81848958,4528.9,4528.8,1.23]
[1755203987204,58.81848958,4528.9,4528.8,2.46]
[1755203988109,59.36848295,4528.9,4528.8,2.46]
[1755203988440,57.87723098,4528.9,4528.8,2.46]
[1755203988636,57.87723255,4528.9,4528.8,3.69]
[1755203988940,61.51879901,4528.9,4528.8,3.69]
[1755203989106,61.3972378,4528.9,4528.8,3.69]
[1755203989640,61.3972378,4528.9,4528.8,3.67964447]
[1755203990035,61.3972378,4528.9,4528.8,4.90964447]
[1755203990340,61.19463026,4528.9,4528.8,4.90964447]
[1755203991247,61.72115103,4528.9,4528.8,4.90964447]
[1755203991421,61.72115103,4528.9,4528.8,6.13964447]
[1755203992122,61.72115103,4528.9,4528.8,5.85233819]
[1755203992335,61.72115103,4528.9,4528.8,4.06219897]
[1755203992539,61.83155103,4528.9,4528.8,4.06219897]
[1755203992859,59.63655103,4528.9,4528.8,5.29219897]
[1755203993008,63.14955103,4528.9,4528.8,5.29219897]
[1755203993344,64.71062789,4528.9,4528.8,5.29219897]
[1755203994116,64.71062789,4528.9,4528.8,6.52219897]
[1755203994675,64.71062789,4528.9,4528.8,6.30671872]
[1755203995176,57.62308921,4528.9,4528.8,6.30671872]
[1755203995480,61.13308921,4528.9,4528.8,7.53671872]
[1755203996050,58.41572789,4528.9,4528.8,7.53671872]
[1755203996247,55.52965103,4528.9,4528.8,7.53671872]
[1755203996453,54.4597558,4528.9,4528.8,7.53671872]
[1755203996665,57.96869612,4528.9,4528.8,7.53671872]
[1755203996973,57.96869612,4528.9,4528.8,8.76671872]
[1755203997177,35.03627659,4528.9,4528.8,8.76671872]
[1755203997343,38.18837391,4528.9,4528.8,8.76671872]
[1755203997543,1.79567956,4528.9,4528.8,8.76671872]
[1755203997742,4.30828612,4528.9,4528.8,9.22841872]
[1755203998067,4.72044156,4528.9,4528.8,9.99671872]
[1755203998233,41.62751527,4528.9,4528.8,9.99671872]
[1755203998435,43.77977182,4528.9,4528.8,7.32257159]
[1755203999179,56.84997182,4528.9,4528.8,7.32257159]
[1755203999348,60.36897182,4528.9,4528.8,7.32257159]
[1755203999555,60.36897182,4528.9,4528.8,8.39959732]
[1755203999759,61.92889618,4528.9,4528.8,8.39959732]
[1755203999955,61.92889618,4528.9,4528.8,7.20624775]
[1755204000152,32.52497182,4528.9,4528.8,7.20624775]
[1755204000370,2.35077994,4528.9,4528.8,7.66794775]
[1755204000601,0.46861809,4529.0,4528.8,7.66794775]
[1755204000901,3.98961809,4529.0,4528.8,8.43624775]
[1755204001385,3.521,4528.9,4528.8,8.43624775]
[1755204001583,3.52,4528.9,4528.8,8.43624775]
[1755204001951,3.52,4528.9,4528.8,8.94960709]
[1755204002393,3.52,4528.9,4528.8,10.17960709]
[1755204003358,6.52,4528.9,4528.8,9.66624775]
[1755204003569,36.52,4528.9,4528.8,9.66624775]
[1755204003775,6.52,4528.9,4528.8,10.89624775]
[1755204004358,6.52,4528.9,4528.8,10.89724775]
[1755204005261,6.52,4528.9,4528.8,12.12724775]
[1755204005574,6.516,4528.9,4528.8,12.12724775]
[1755204006574,6.516,4528.9,4528.8,13.35724775]
[1755204007833,38.15800904,4528.9,4528.8,14.58724775]
[1755204008330,38.26840904,4528.9,4528.8,14.58724775]
[1755204008600,37.0972,4528.9,4528.8,14.58724775]
[1755204008806,37.41903868,4528.9,4528.8,14.58724775]
[1755204009207,39.82103868,4528.9,4528.8,15.81724775]
[1755204009413,40.13136636,4528.9,4528.8,15.81724775]
[1755204009588,40.13136636,4528.9,4528.8,15.80885977]
[1755204009795,40.13136636,4528.9,4528.8,13.80338361]
[1755204010365,43.45712421,4528.9,4528.8,11.22453828]
[1755204010569,53.79832872,4528.9,4528.8,9.7804115]
[1755204010771,54.68259096,4528.9,4528.8,9.7804115]
[1755204011308,74.68259096,4528.9,4528.8,9.7804115]
[1755204011778,44.68259096,4528.9,4528.8,9.7804115]
[1755204011980,74.68259096,4528.9,4528.8,11.0104115]
[1755204012185,74.68159096,4528.9,4528.8,11.0104115]
[1755204012575,75.68157409,4528.9,4528.8,11.0104115]
[1755204013111,75.68153141,4528.9,4528.8,11.0104115]
[1755204013323,75.68153141,4528.9,4528.8,12.2404115]
[1755204013488,76.7251024,4528.9,4528.8,12.2404115]
[1755204013817,76.7251024,4528.9,4528.8,12.16491965]
[1755204013989,76.88924199,4528.9,4528.8,8.6560978]
[1755204014189,76.88924199,4528.9,4528.8,8.57320608]
[1755204014490,76.88924199,4528.9,4528.8,8.42952533]
[1755204014680,77.00441204,4528.9,4528.8,9.65952533]
[1755204015112,77.00441204,4528.9,4528.8,8.46583307]
[1755204015820,77.00141204,4528.9,4528.8,8.46583307]
[1755204016115,77.00141204,4528.9,4528.8,9.69583307]
[1755204016116,77.11673785,4528.9,4528.8,9.69583307]
[1755204016477,77.11673785,4528.9,4528.8,7.02107351]
[1755204016683,80.912872,4528.9,4528.8,7.02107351]
[1755204017617,80.74873241,4528.9,4528.8,8.25107351]
[1755204017776,76.74873241,4528.9,4528.8,8.25107351]
[1755204018202,76.74873241,4528.9,4528.8,6.76930491]
[1755204018417,76.74873241,4528.9,4528.8,2.98540645]
[1755204018776,76.74873241,4528.9,4528.8,4.21540645]
[1755204018977,4.875,4528.7,4527.8,0.001]
[1755204019178,17.93861316,4527.9,4527.8,0.001]
[1755204019382,61.30779355,4527.9,4527.8,0.001]
[1755204019605,65.22527993,4527.9,4527.8,0.001]
[1755204019832,65.22527993,4527.9,4525.2,2.3059]
[1755204019833,1.325,4527.3,4525.2,2.3059]
[1755204020001,14.39352872,4526.9,4525.2,2.3059]
[1755204020184,52.51539766,4526.9,4524.3,2.3059]
[1755204020380,52.89347688,4526.9,4524.3,2.3059]
[1755204020588,52.75271454,4526.9,4525.1,2.3059]
[1755204021121,72.75271454,4526.9,4525.1,2.3059]
[1755204021311,73.08570888,4526.9,4525.1,2.3059]
[1755204021508,73.08570888,4526.9,4526.8,6.39399999]
[1755204021696,73.51574229,4526.9,4526.8,6.39399999]
[1755204022328,73.36769406,4526.9,4526.8,6.39399999]
[1755204022528,73.83570772,4526.9,4526.8,6.39399999]
[1755204022745,69.33400772,4526.9,4526.8,7.62399999]
[1755204023044,72.18897572,4526.9,4526.8,7.62399999]
[1755204023246,72.73897572,4526.9,4526.8,7.62399999]
[1755204023391,73.16967572,4526.9,4526.8,7.62399999]
[1755204024021,72.73897572,4526.9,4526.8,7.62399999]
[1755204024338,73.90805824,4526.9,4526.8,8.85399999]
[1755204024543,74.33875824,4526.9,4526.8,8.85399999]
[1755204024687,70.81975824,4526.9,4526.8,8.85399999]
[1755204025045,75.45657572,4526.9,4526.8,8.85399999]
[1755204025334,73.17167572,4526.9,4526.8,8.85399999]
[1755204025542,69.65067572,4526.9,4526.8,10.08399999]
[1755204025834,73.17067572,4526.9,4526.8,10.08399999]
[1755204026217,74.338904,4526.9,4526.8,10.08399999]
[1755204026585,73.17067572,4526.9,4526.8,10.08399999]
[1755204026809,76.68394356,4526.9,4526.8,10.08399999]
[1755204027143,78.85844356,4526.9,4526.8,8.92577822]
[1755204027812,78.85716504,4526.9,4526.8,8.92577822]
[1755204028020,82.85716504,4526.9,4526.8,8.638275]
[1755204028212,82.85716504,4526.9,4526.8,8.197475]
[1755204028418,82.85716504,4526.9,4526.8,9.427475]
[1755204028648,86.60616504,4526.9,4526.8,2.51862871]
[1755204028828,1.325,4525.9,4525.8,0.001]
[1755204028991,55.34438382,4525.9,4525.8,0.001]
[1755204029189,58.85224006,4525.9,4525.8,0.001]
[1755204029435,64.28224006,4525.9,4525.8,0.001]
[1755204029724,64.28224006,4525.9,4522.6,2.296]
[1755204029725,60.75424006,4525.9,4523.0,0.4669]
[1755204029932,60.75424006,4525.9,4523.1,0.4669]
[1755204029933,4.325,4523.9,4523.1,0.4669]
[1755204030136,16.03179656,4523.2,4519.5,0.1]
[1755204030293,16.03179656,4522.4,4519.6,6.2909]
[1755204030493,3.532,4522.3,4519.7,3.62325154]
[1755204030737,12.56223035,4521.9,4519.8,0.4669]
[1755204030940,3.0,4521.7,4519.8,2.7629]
[1755204031248,3.0,4521.7,4519.6,0.4669]
[1755204031249,12.56223035,4521.0,4519.6,0.4669]
[1755204031428,30.20211934,4520.9,4519.9,0.4669]
[1755204031634,3.84511934,4520.8,4519.5,0.2495]
[1755204031807,0.28351256,4521.6,4519.5,0.2495]
[1755204031808,3.0,4521.2,4519.6,2.7629]
[1755204032137,12.56223035,4520.9,4519.7,0.30124]
[1755204032290,30.0,4519.7,4519.5,0.2495]
[1755204032495,0.20145681,4519.6,4519.5,0.2495]
[1755204032696,3.693,4519.6,4519.5,0.7164]
[1755204032896,3.693,4519.6,4519.5,3.0124]
[1755204033194,30.20147793,4519.6,4519.5,0.2495]
[1755204033421,33.52331661,4519.6,4519.5,0.2495]
[1755204033621,36.95647793,4519.6,4519.5,0.2495]
[1755204033822,33.78815962,4519.6,4519.5,0.2495]
[1755204034023,37.56215962,4519.6,4519.5,0.2495]
[1755204034237,37.8839983,4519.6,4519.5,0.2495]
[1755204034531,38.8646983,4519.6,4519.5,1.4795]
[1755204034736,33.78815962,4519.6,4519.5,1.4795]
[1755204035047,57.56415962,4519.6,4519.5,1.4795]
[1755204035249,61.1495983,4519.6,4519.5,1.4795]
[1755204035749,54.1099983,4519.6,4519.5,1.4795]
[1755204035954,54.24200693,4519.6,4519.5,1.4795]
[1755204036102,30.20147793,4519.6,4519.5,2.7095]
[1755204036308,0.20147793,4519.6,4519.5,5.4724]
[1755204036572,0.16540499,4519.7,4519.5,5.4724]
[1755204036772,0.16540499,4519.7,4519.6,0.4669]
[1755204037067,0.20147793,4519.8,4519.6,2.7629]
[1755204037373,0.04042117,4519.7,4519.5,2.7095]
[1755204037732,3.775,4519.6,4519.5,3.9395]
[1755204038036,0.20041919,4519.6,4519.5,3.9395]
[1755204038349,3.775,4519.6,4519.5,4.4064]
[1755204038639,0.20041919,4519.6,4519.5,3.9395]
[1755204038843,0.04042117,4519.7,4519.5,4.4064]
[1755204039002,0.04042117,4519.7,4519.6,0.4669]
[1755204039208,0.04042117,4519.7,4519.6,2.7629]
[1755204039636,0.04042117,4519.7,4519.6,3.43314]
[1755204039852,0.04042117,4519.7,4519.6,3.45526585]
[1755204039853,0.1104,4519.7,4519.6,3.45526585]
[1755204040063,0.1104,4519.7,4519.6,3.98314]
[1755204040223,0.77707802,4524.3,4521.3,2.21174859]
[1755204040551,0.77707802,4524.3,4521.5,0.55]
[1755204040552,0.11542124,4524.3,4521.5,0.55]
[1755204040753,30.0,4524.2,4521.7,0.55]
[1755204040955,30.0,4524.2,4521.9,0.55]
[1755204041134,3.0,4524.8,4522.1,0.55]
[1755204041343,30.0,4524.7,4522.3,0.55]
[1755204041555,30.0,4524.7,4522.4,0.74353131]
[1755204041876,30.0,4524.7,4522.6,0.55]
[1755204042016,30.0,4525.2,4522.8,0.55]
[1755204042213,0.16925379,4525.2,4522.9,2.6612]
[1755204042562,3.0,4524.4,4522.2,2.6612]
[1755204042713,3.0,4524.2,4522.2,2.6612]
[1755204042916,3.0,4524.0,4522.2,2.6612]
[1755204043119,33.822,4523.9,4522.2,2.6612]
[1755204043320,30.0,4523.8,4522.2,2.6612]
[1755204043535,30.0,4523.8,4522.3,0.63132]
[1755204043740,20.0,4524.3,4522.3,0.63132]
[1755204044054,30.0,4524.2,4522.4,3.2112]
[1755204044256,30.0,4524.2,4522.6,0.55]
[1755204044549,30.0,4524.2,4522.7,0.3652]
[1755204044733,30.0,4524.6,4522.8,0.32112]
[1755204044937,33.0,4524.6,4522.8,0.32112]
[1755204045121,33.0,4524.6,4521.9,0.55]
[1755204045122,3.0,4524.4,4521.7,2.6612]
[1755204045321,3.0,4524.2,4521.8,4.367]
[1755204045549,3.0,4524.0,4521.7,2.6612]
[1755204045723,3.0,4523.8,4521.7,2.6612]
[1755204045919,3.0,4523.6,4521.7,2.6612]
[1755204046246,33.815,4523.5,4521.8,0.64772]
[1755204046448,3.815,4523.5,4521.8,0.64772]
[1755204046622,32.7156,4523.4,4521.1,3.813]
[1755204046816,30.0,4523.3,4521.2,6.4732]
[1755204047013,30.0,4523.3,4521.3,4.20231753]
[1755204047215,30.0,4523.4,4521.4,2.6612]
[1755204047417,30.0,4523.4,4521.5,0.3652]
[1755204047631,30.0,4523.4,4521.6,0.64762]
[1755204047832,30.0,4523.4,4521.7,0.3652]
[1755204048018,30.0,4523.4,4521.6,0.64762]
[1755204048213,30.0,4523.4,4521.4,3.815]
[1755204049416,33.0,4523.4,4523.3,1.23]
[1755204049619,35.7156,4523.4,4523.3,1.23]
[1755204050886,35.7156,4523.4,4523.3,2.46]
[1755204051351,36.18062638,4523.4,4523.3,2.46]
[1755204051707,35.7156,4523.4,4523.3,2.46]
[1755204051844,36.1807705,4523.4,4523.3,2.46]
[1755204052040,36.30190561,4523.4,4523.3,2.46]
[1755204052387,56.50380063,4523.4,4523.3,3.69]
[1755204052572,26.50380063,4523.4,4523.3,3.69]
[1755204052882,57.82880063,4523.4,4523.3,3.69]
[1755204053384,57.82880063,4523.4,4523.3,3.42447886]
[1755204053855,53.78820063,4523.4,4523.3,4.65447886]
[1755204054049,34.11046552,4523.4,4523.3,4.65447886]
[1755204054545,31.11046552,4523.4,4523.3,4.65447886]
[1755204054949,33.64529502,4523.4,4523.3,4.65447886]
[1755204055173,34.11137522,4523.4,4523.3,4.65447886]
[1755204055373,33.66797522,4523.4,4523.3,5.88447886]